Cogmind - Beta 13 X1 @@@ ROGUE MODE // 2023.07.10 @ 18:13:09 Player: Momo Result: Destroyed by Autobeam Turret with Autobeam Performance ------------- Evolutions (0) 0 Regions Visited (3) 600 Robots Destroyed (5) 25 Value Destroyed (110) 110 Prototype IDs (0) 0 Alien Tech Used (0) 0 Bonus (0) 0 TOTAL SCORE: 735 Bonus ------- None Cogmind --------- Core Integrity 0/250 Matter 291/300 Energy 98/100 System Corruption 2% Temperature Cool (18) Movement Core (50) Location -10/Subcaves Parts ------- > --- POWER (1) -------- (None) > --- PROPULSION (2) --- (None) > --- UTILITY (2) ------ (None) > --- WEAPON (2) ------- (None) > --- INVENTORY (5) ---- Hover Unit Small Storage Unit Scrap Shield Fragment (45) Peak State ------------ > --- POWER ------------ (None) > --- PROPULSION ------- Light Treads Light Treads > --- UTILITY ---------- (None) > --- WEAPON ----------- Light Assault Rifle Rocket Launcher > --- INVENTORY -------- Hover Unit Small Storage Unit Assault Rifle [Rating: 5] Favorites ----------- Power None Propulsion Light Treads Treads Light Treads Utility None Weapon Assault Rifle Ballistic Gun Assault Rifle Launcher Rocket Launcher Build | -11 -10 -10 -10 ------- Run | Jun Mat Min Sub Slots Evolved . | . . . . Power . | . . . . Propulsion . | . . . . Utility . | . . . . Weapon . | . . . . Parts Attached 7 | 4 . 1 2 Power . | . . . . Engine . | . . . . Core . | . . . . Reactor . | . . . . Propulsion 2 | 2 . . . Treads 2 | 2 . . . Leg . | . . . . Wheel . | . . . . Hover . | . . . . Flight . | . . . . Utility . | . . . . Device . | . . . . Storage . | . . . . Processor . | . . . . Hackware . | . . . . Protection . | . . . . Artifact . | . . . . Weapon 5 | 2 . 1 2 Energy Gun . | . . . . Energy Cannon . | . . . . Ballistic Gun 4 | 2 . 1 1 Ballistic Cannon . | . . . . Launcher 1 | . . . 1 Special Weapon . | . . . . Impact Weapon . | . . . . Slashing Weapon . | . . . . Piercing Weapon . | . . . . Special Melee Weapon . | . . . . Unidentified Prototypes . | . . . . Parts Lost 6 | . . 1 5 Power . | . . . . Propulsion 2 | . . . 2 Utility . | . . . . Weapon 4 | . . 1 3 Highest Loss Streak 3 | . . 1 3 To Critical Strikes 1 | . . 1 . Average Slot Usage (%) 54 | . 57 56 46 Treads 28 | . 28 28 28 Ballistic Gun 25 | . 28 27 18 Naked Turns 4 | . . . 4 Heaviest Build 3 | 3 3 3 3 Greatest Support 20 | 20 3 3 3 Greatest Overweight (x) . | . . . . Average Overweight (x) . | . . . . Largest Inventory Capacity 5 | 5 5 5 5 Average Capacity 5 | 5 5 5 5 Most Carried 3 | 2 3 3 3 Average Carried 2 | 1 2 2 2 Final Capacity 5 | 5 5 5 5 Final Carried 3 | 2 3 3 3 Class Distribution -------------------- 100% | Mutant Dominant Class ---------------- Mutant | -10/Materials Mutant | -10/Mines Mutant | -10/Subcaves Resources | -11 -10 -10 -10 ----------- Run | Jun Mat Min Sub Matter Collected 374 | 236 . 73 65 Remotely . | . . . . Salvage Created 90 | . . 47 43 Parts 5 | . . 4 1 Haulers Intercepted . | . . . . Recyclers Shooed . | . . . . Parts Field Recycled . | . . . . Retrieved Matter . | . . . . Parts Self-Destructed 1 | . . . 1 Prevented . | . . . . Kills | -11 -10 -10 -10 ------- Run | Jun Mat Min Sub Combat Hostiles Destroyed 5 | . . 3 2 Guns 5 | . . 3 2 Classes Destroyed 2 | . . 1 1 Swarmer 3 | . . 3 . Subdweller 2 | . . . 2 Best Kill Streak 2 | . . 2 2 Combat Bots Only 2 | . . 2 2 Max Kills in Single Turn 1 | . . 1 1 Gunslinging . | . . . . Exploded . | . . . . Melee . | . . . . Uniques/NPCs Destroyed . | . . . . Combat | -11 -10 -10 -10 -------- Run | Jun Mat Min Sub Damage Taken 866 | . 25 244 597 Core 257 | . 8 73 176 Absorbed by Shields . | . . . . Core Remaining (%) 100 | 100 . . . Volleys Fired 30 | . . 17 13 Largest 2 | . . 2 1 Hottest 40 | . . 40 33 Shots Fired 45 | . . 32 13 Gun 41 | . . 32 9 Cannon . | . . . . Launcher 4 | . . . 4 Special . | . . . . Kinetic 41 | . . 32 9 Thermal . | . . . . Explosive 4 | . . . 4 Electromagnetic . | . . . . Robot Hit Streak 11 | . . 8 11 Robot Miss Streak 4 | . . 4 1 Penetration Max . | . . . . Secondary Targets 1 | . . 1 . Max Gunslinging Chain 1 | . . 1 . Shots Hit Robots 29 | . . 17 12 Core Hits 9 | . . 4 5 Critical Kills . | . . . . Critical Parts Destroyed . | . . . . Critical Strikes . | . . . . Melee Attacks . | . . . . Impact . | . . . . Slashing . | . . . . Piercing . | . . . . Sneak Attacks . | . . . . Combat Hostiles . | . . . . Follow-up Attacks . | . . . . Damage Inflicted 484 | . . 156 328 Guns 252 | . . 156 96 Cannons . | . . . . Explosions 232 | . . . 232 Melee . | . . . . Ramming . | . . . . Kinetic 252 | . . 156 96 Thermal . | . . . . Explosive 232 | . . . 232 Electromagnetic . | . . . . Impact . | . . . . Slashing . | . . . . Piercing . | . . . . Highest Corruption 2 | . 2 2 2 Average Corruption 2 | . 2 2 2 Corruption Purged . | . . . . Corruption Blocked . | . . . . Effects 5 | . . 3 2 Message Errors 2 | . . 2 . Matter Fused 1 | . . 1 . Energy Discharges 1 | . . . 1 Data Loss (minor) 1 | . . . 1 Overload Shots . | . . . . Overflow Damage . | . . . . Projectiles . | . . . . Explosions . | . . . . Melee . | . . . . Knockbacks . | . . . . Impact . | . . . . Kinetic . | . . . . Secondary . | . . . . Self-Inflicted Damage 48 | . . . 48 Shots 1 | . . . 1 Rammed . | . . . . Targets Rammed . | . . . . Kicked . | . . . . Crushed . | . . . . Highest Temperature 280 | . . . 280 Average Temperature 150 | . . . 150 Received Heat Transfer 474 | . . . 474 Siege Activations . | . . . . Robots Corrupted . | . . . . Combat Hostiles . | . . . . Parts Fried . | . . . . Impact Corruptions . | . . . . Robots Melted . | . . . . Combat Hostiles . | . . . . Parts Melted . | . . . . Heat Transferred . | . . . . Parts Sabotaged . | . . . . Parts Stolen . | . . . . Parts Stripped . | . . . . Power Chain Reactions . | . . . . Missiles Intercepted . | . . . . Alert | -11 -10 -10 -10 ------- Run | Jun Mat Min Sub Peak Influence 98 | . 60 98 . Initial 23 | . . 23 . Average 55 | . 8 86 . Maximum Alert Level . | . . . . Low Security (%) 100 | 100 100 100 . Level 1 . | . . . . Level 2 . | . . . . Level 3 . | . . . . Level 4 . | . . . . Level 5 . | . . . . High Security . | . . . . Max Security . | . . . . Squads Dispatched . | . . . . Investigation . | . . . . Extermination . | . . . . Reinforcement . | . . . . Assault . | . . . . Garrison . | . . . . Intercept . | . . . . Searches Triggered . | . . . . Construction Impeded . | . . . . Haulers Reinforced . | . . . . Active Scanning Responses . | . . . . Cargo Convoy Interrupts . | . . . . Stealth | -11 -10 -10 -10 --------- Run | Jun Mat Min Sub Distress Signals 1 | . 1 . . Communications Jammed . | . . . . Distress Signals . | . . . . Times Spotted 32 | . 11 3 18 Peak Tracking Total 9 | . 9 3 8 Tactical Retreats 3 | . 2 . 1 Traps | -11 -10 -10 -10 ------- Run | Jun Mat Min Sub Traps Triggered 2 | . 1 . 1 Indirectly . | . . . . Trap Hack Attempts . | . . . . Triggered . | . . . . Disarmed . | . . . . Reprogrammed . | . . . . Reused . | . . . . Traps Extracted . | . . . . Installed . | . . . . Triggered . | . . . . Machines | -11 -10 -10 -10 ---------- Run | Jun Mat Min Sub Machines Disabled . | . . . . Max in Single Turn . | . . . . Machines Repaired . | . . . . Machines Sabotaged . | . . . . Overloaded Fab Kills . | . . . . Hacking | -11 -10 -10 -10 --------- Run | Jun Mat Min Sub Machines Accessed . | . . . . Terminals . | . . . . Fabricators . | . . . . Repair Stations . | . . . . Recycling Units . | . . . . Scanalyzers . | . . . . Garrison Access . | . . . . Total Hacks . | . . . . Successful . | . . . . Failed . | . . . . Catastrophic . | . . . . Database Lockouts . | . . . . Manual . | . . . . Terminals . | . . . . Fabricators . | . . . . Repair Stations . | . . . . Recycling Units . | . . . . Scanalyzers . | . . . . Garrison Access . | . . . . Terminal Hacks . | . . . . Fabricator Hacks . | . . . . Repair Station Hacks . | . . . . Recycling Unit Hacks . | . . . . Scanalyzer . | . . . . Garrison Access Hacks . | . . . . Unauthorized Hacks . | . . . . Terminals . | . . . . Fabricators . | . . . . Repair Stations . | . . . . Recycling Units . | . . . . Scanalyzers . | . . . . Garrison Access . | . . . . Data Cores Recovered . | . . . . Used . | . . . . Hacking Detections . | . . . . Full Trace Events . | . . . . Feedback Events . | . . . . Feedback Blocked . | . . . . Robot Schematics Acquired . | . . . . Robots Built . | . . . . Authchips . | . . . . Time . | . . . . Total Robot Build Rating . | . . . . Part Schematics Acquired . | . . . . Parts Built . | . . . . Authchips . | . . . . Time . | . . . . Total Part Build Rating . | . . . . Parts Repaired . | . . . . Time . | . . . . Parts Recycled . | . . . . Recycled Matter . | . . . . Retrieved Matter . | . . . . Retrieved Components . | . . . . Parts Scanalyzed . | . . . . Part Schematics Acquired . | . . . . Parts Damaged . | . . . . Bothacking | -11 -10 -10 -10 ------------ Run | Jun Mat Min Sub Used RIF Installer . | . . . . Robots Hacked . | . . . . Non-combat . | . . . . Combat . | . . . . Robot Hacks Applied . | . . . . Relay Couplers Released . | . . . . Fabnet Peak Effective % . | . . . . Robots Rewired . | . . . . Allies Hacked . | . . . . Hacks Repelled . | . . . . Allies | -11 -10 -10 -10 -------- Run | Jun Mat Min Sub Total Allies . | . . . . Largest Group . | . . . . Highest-Rated Group . | . . . . Highest-Rated Ally . | . . . . Total Orders . | . . . . Ally Attacks . | . . . . Total Damage . | . . . . Kills . | . . . . Allies Corrupted . | . . . . Allies Melted . | . . . . Intel | -11 -10 -10 -10 ------- Run | Jun Mat Min Sub Robot Analysis Total . | . . . . Derelict Logs Recovered 1 | . . 1 . Drone Launches . | . . . . Drone Recoveries . | . . . . Exploration | -11 -10 -10 -10 ------------- Run | Jun Mat Min Sub Turns Passed 338 | 30 72 165 71 Spaces Moved 395 | 41 141 131 82 Core 394 | 40 141 131 82 Treads 1 | 1 . . . Legs . | . . . . Wheels . | . . . . Hover . | . . . . Flight . | . . . . Fastest Speed 50 | 50 50 50 50 Average Speed 50 | 52 50 50 50 Slowest Speed 160 | 160 50 50 50 Overloaded Moves . | . . . . Propulsion Burnouts . | . . . . Robots Hopped . | . . . . Cave-ins Triggered . | . . . . Exploration Rate (%) 22 | 3 36 38 12 Regions Visited 3 Branch Regions 2 Pre-discovered Areas 1 | . . 1 . Known Exits Taken . | . . . . Unknown Exits Taken 3 | 1 1 1 . Scrap Searched 1 | . . 1 . Spaces Dug . | . . . . Terrain Destroyed 31 | . . . 31 Melee . | . . . . Projectile . | . . . . AOE 31 | . . . 31 Terrain Rammed . | . . . . Walls Destroyed . | . . . . Machines Disabled . | . . . . Actions | -11 -10 -10 -10 --------- Run | Jun Mat Min Sub Total 485 | 46 141 200 98 Wait 51 | . . 51 . Move 392 | 40 140 130 82 Hop . | . . . . Pick Up 5 | 2 1 1 1 Fast Attach 4 | 4 . . . Attach 2 | . . 1 1 Detach . | . . . . Swap 1 | . . . 1 Drop . | . . . . Fire 30 | . . 17 13 Melee . | . . . . Ram . | . . . . Kick . | . . . . Crush . | . . . . Escape Stasis . | . . . . Rewire . | . . . . Trap . | . . . . Miscellaneous . | . . . . Route ------- -11/Junkyard -10/Materials (discovered 2 exits: [*Mat] / [*Min]) -10/Mines -10/Subcaves (discovered 1 exit: [*Rec]) History --------- Turn | Location | Event 4 | -11/Junkyard | Discovered new exit (range 15) 31 | -11/Junkyard | Entered Materials 62 | -10/Materials | Discovered new exit (range 9) 88 | -10/Materials | Discovered new exit (range 14) 103 | -10/Materials | Entered Mines 165 | -10/Mines | Learned location of Storage (-7) 187 | -10/Mines | Learned Materials trap positions 195 | -10/Mines | Received a Rocket Launcher from a helpful Derelict 267 | -10/Mines | Discovered new exit (range 3) 268 | -10/Mines | Entered Subcaves 290 | -10/Subcaves | Core integrity fell below 50% 315 | -10/Subcaves | Build established: Mutant 333 | -10/Subcaves | Ambushed by Subdwellers from Twisted Machinery 335 | -10/Subcaves | Discovered new exit (range 13) 338 | -10/Subcaves | Core integrity fell below 20% 339 | -10/Subcaves | Destroyed by Autobeam Turret with Autobeam Last Messages --------------- 00272_ Critical hit (Impale). 00287_ Critical hit (Meltdown: +300). 00289_ Rocket Launcher destroyed. 00292_ System corrupted: Component data lost. 00293_ Lgt. Assault Rifle destroyed. 00301_ 55-IFZ(R) destroyed. 00307_ ZY-P69(R) destroyed. 00312_ Acquired 32 matter. 00312_ Acquired 11 matter. 00313_ The unstable cave ceiling collapses. 00313_ Acquired Scrap Shield Fragment. 00320_ The unstable cave ceiling collapses. 00321_ Acquired 14 matter. 00324_ Acquired 8 matter. 00330_ Lgt. Treads destroyed. 00333_ GW-6IO(R) emerges from the Twisted Machinery. 00333_ Lgt. Treads destroyed. 00335_ Assault Rifle destroyed. 00335_ EXIT=FOUND 00336_ S-10 Pest destroyed. Map ----- +----------------------------------------------------+ | ????????????????#?# #???????????????????????????? | | ?????#?????????? ## ##??????????????????????????? | | ????## ?????????? ##?????????????????????????? | | ????# ?????????? #???????###???????????????? | | ????# ??????????# #???????? ###?????????????? | | ???## ????????### #???????? "##????????????? | | ???# ???###### #???????? ""#??????#?????? | | ???# ??## ## #????????# #???? #?????? | | ???# ??# % #???????## ##?? ?????? | | ??## #### % #??????## ## ??????? | | ??# # # ## ##?###### % ??????? | | ???# #### ????????? | | ???#### #????????????? | | ??#### #### #????????????? | | ??# ##??# ## "#????????????? | | ??# ^##???## # ## "####???? #?? | | ??# # ####?## #### "" ## #?? | | ??# # ###### #### #? | | ?## # #?####?# #? | | ?# # #?????## s= ? | | ### ## ##????## s%#""" ""# ? | | ? ## & ! #????## =###" "##?# #?? | | # # # #????# s #?## ""#???? ##?? | | ### # ###????### #??## ###???????#???? | | ## # #?????#### ####? #?????????????? | | # ##?????#" @ "#?# #????????????? | | ## ##????# #? ##????????????? | | ## #????# #? "#?????????????? | | ## #???#" t t "#?# "#?????????????? | | ###" "# ##???#" " " "#??""#?????????????? | | ##?## #????#"""" """"#??""??????????????? | | ###???# ##???#####<#####???"??????????????? | | #??????" #???????###??????????????????????? | | ??????### ???????????????????????????????? | | ????????## #?????????????????????????????? | | ?????????## ????????????????????????????? | | ??????????## ??????????????????????????? | | ???????????####### ^ ?????????????????????????? | | ??????????????????# ???????????????????????? | | ??????????????????? ##??????????????????????? | | ???????????????????? ####???????????????????????? | | ???????????????????? #??????????????????????????? | | ????????????????????? ??????????????????????????? | | ????????????????????? #?????????????????????????? | | ??????????????????????##?????????????????????????? | | ?????????????????????????????????????????????????? | | ?????????????????????????????????????????????????? | | ?????????????????????????????????????????????????? | | ?????????????????????????????????????????????????? | | ?????????????????????????????????????????????????? | +----------------------------------------------------+ Best States ------------- Heat Dissipation 25 Energy Generation 5 Energy Capacity 100 Matter Stores 296 Matter Capacity 300 Sight Range 16 Terrain Scan Density 10 Evasion (%) 50 Item Schematics ----------------- None Robot Schematics ------------------ None Fabricated ------------ Nothing Alien Tech Used ----------------- None Achievements -------------- None Challenges ------------ None Game ------ Seed LauncherPlatingKatana Manual? 1 Play Time 00:04:04 Cumulative 424.1 hours Start 2023.07.10 @ 18:10:07 End 2023.07.10 @ 18:13:09 Sessions 1 Manual Loads 0 Difficulty Rogue Special Mode None Game No. 203 Rogue 199 Adventurer 0 Explorer 4 Win Type - Total 24 Types 8/1/2/5/1/2/3/1/1 Lore% 81 Gallery% 86 Achievement% 80 Wizard Run 0 Options --------- ASCII 0 Keyboard 0 Movement Mouse Keybinds 0 Fullscreen 1 Font 18/SmallcapsGlow Map View 76x50 Tactical HUD 1 Map Filters NONE Filters NONE Steam 1 RUN: ff292ad8-c6ee-48c6-9a5d-a51051154ed8